fUSD/lending_fUSD_20240318
["ID","MTS","AMOUNT","RATE_DAILY","PERIOD"]
[319441425,1710747032628,-599.32325635,0.00017887,2]
[319441426,1710747032638,-164.78761619,0.00018019,2]
[319441427,1710747032646,-159.13802943,0.00018105,2]
[319441428,1710747032655,-10105.9,0.00018188,2]
[319441429,1710747032664,-250.0,0.00018205,2]
[319441430,1710747032673,-200.0,0.0001823,2]
[319441431,1710747032682,-1951.8,0.00018241,2]
[319441432,1710747032692,-250.0,0.00018275,2]
[319441433,1710747032701,-188.09,0.00018397,2]
[319441434,1710747032710,-249.12,0.00018479,2]
[319441435,1710747032719,-600.0,0.00018495,2]
[319441436,1710747032728,-156.44,0.0001851,2]
[319441437,1710747032737,-413.08,0.00018516,2]
[319441438,1710747032747,-296.74441516,0.000189,2]
[319441439,1710747032756,-800.0,0.00018968,2]
[319441440,1710747032766,-850.0,0.00019,3]
[319441441,1710747032777,-150.0,0.00019178,2]
[319441442,1710747032788,-4762.0,0.00019211,2]
[319441443,1710747032798,-159.13802938,0.00019461,2]
[319441444,1710747032808,-363.4667793,0.000195,2]
[319441445,1710747032820,-170089.0,0.000196,2]
[319441446,1710747032829,-150.0,0.00019683,2]
[319441447,1710747032840,-208.4264,0.000199,2]
[319441448,1710747032850,-1250.0,0.000199,2]
[319441449,1710747032860,-211.35479475,0.0001998,2]
[319441450,1710747032871,-186.91974854,0.00019998,2]
[319441451,1710747032882,-155.0,0.00019998,2]
[319441452,1710747032892,-484.78357227,0.00019998,2]
[319441453,1710747032902,-523.56974428,0.00019998,2]
[319441454,1710747032911,-155.0,0.00019998,2]
[319441455,1710747032921,-21517.46019292,0.0002,2]
[319441456,1710747032934,-476.73648322,0.0002,2]
[319441457,1710747032961,-3409.8,0.0002,2]
[319441458,1710747032974,-325.01828258,0.0002,2]
[319441459,1710747033082,-999.03912351,0.0002,2]
[319441460,1710747033104,-5652.76436513,0.0002,2]
[319441461,1710747033116,-242.78847043,0.0002,2]
[319441462,1710747033127,-5431.4116181,0.0002,2]
[319441463,1710747033140,-4089.66,0.0002,2]
[319441464,1710747033162,-3473.25986075,0.0002,2]
[319441471,1710747038268,-155.0,0.00013779,2]
[319441472,1710747038278,-1092.23731202,0.0002,2]
[319441473,1710747038287,-155.0,0.0002,2]
[319441474,1710747038296,-1361.44941736,0.0002,2]
[319441475,1710747038306,-286.68802756,0.0002,2]
[319441476,1710747038315,-1754.32004483,0.0002,2]
[319441477,1710747038327,-2500.0,0.0002,2]
[319441478,1710747038337,-155.0,0.0002,2]
[319441479,1710747038346,-3040.27810605,0.0002,2]
[319441480,1710747038355,-1848.45899034,0.0002,2]
[319441481,1710747038365,-1246.89677461,0.0002,2]
[319441482,1710747038374,-155.0,0.0002,2]
[319441483,1710747038383,-400.0,0.0002,2]
[319441484,1710747038393,-1000.0,0.0002,3]
[319441485,1710747038402,-1000.0,0.0002,3]
[319441486,1710747038411,-1000.0,0.0002,3]
[319441487,1710747038421,-1000.0,0.0002,2]
[319441488,1710747038430,-1000.0,0.0002,2]
[319441489,1710747038439,-1000.0,0.0002,3]
[319441490,1710747038449,-1000.0,0.0002,3]
[319441492,1710747038459,-1000.0,0.0002,2]
[319441493,1710747038468,-1000.0,0.0002,2]
[319441495,1710747038477,-150.0,0.00020187,2]
[319441497,1710747038487,-1023.0,0.00020337,30]
[319441499,1710747038496,-215.290739,0.00020337,30]
[319441502,1710747038506,-1670.72,0.00020337,90]
[319441504,1710747038515,-180.0,0.00020364,2]
[319441505,1710747038524,-1000.0,0.000205,3]
[319441506,1710747038533,-1000.0,0.000205,3]
[319441507,1710747038543,-1000.0,0.000205,3]
[319441508,1710747038552,-1000.0,0.000205,2]
[319441509,1710747038562,-1000.0,0.000205,2]
[319441510,1710747038572,-1000.0,0.000205,2]
[319441511,1710747038582,-1002.0,0.000205,3]
[319441512,1710747038593,-200.0,0.00020508,2]
[319441513,1710747038603,-39.89380368,0.00020692,2]
[319441514,1710747039234,-110.10619632,0.00020692,2]
[319441515,1710747039244,-1000.0,0.000207,2]
[319441516,1710747039253,-1000.0,0.000207,2]
[319441517,1710747039263,-1000.0,0.000207,3]
[319441518,1710747039273,-1000.0,0.000207,3]
[319441519,1710747039283,-1005.0,0.000207,3]
[319441520,1710747039292,-1000.0,0.000207,2]
[319441521,1710747039302,-2670.75169307,0.00020707,2]
[319441522,1710747039312,-249.12,0.00020743,2]
[319441523,1710747039321,-600.0,0.00020807,2]
[319441524,1710747039331,-159.13802938,0.00020817,2]
[319441525,1710747039341,-345.0,0.000209,3]
[319441526,1710747039350,-1000.0,0.000209,3]
[319441527,1710747039360,-1000.0,0.000209,2]
[319441528,1710747039369,-900.0,0.00021,3]
[319441529,1710747039378,-4017.65312897,0.00021096,2]
[319441530,1710747039390,-7299.2210505,0.00021096,2]
[319441531,1710747039406,-11653.51582053,0.00021096,2]
[319441532,1710747039415,-150.0,0.00021197,2]
[319441533,1710747039425,-800.0,0.00021339,2]
[319441534,1710747039434,-150.0,0.00021702,2]
[319441535,1710747039443,-2670.751693,0.00021774,2]
[319441536,1710747039453,-818.87227845,0.00021818,2]
[319441537,1710747039462,-250.0,0.00021918,2]
[319441538,1710747039472,-2057.83,0.00021918,10]
[319441539,1710747039482,-2022.0,0.00021918,7]
[319441540,1710747039491,-155.0,0.00021918,2]
[319441541,1710747039500,-155.0,0.00022,2]
[319441542,1710747039510,-155.0,0.00022,2]
[319441543,1710747039519,-779.74941329,0.00022,2]
[319441544,1710747039528,-159.13802938,0.00022173,2]
[319441545,1710747039537,-150.0,0.00022206,2]
[319441546,1710747039547,-151.47738645,0.00022578,2]
[319441548,1710747040082,-681.21788729,0.000199,2]
[319441549,1710747040094,-880.54686907,0.000199,2]
[319441550,1710747040141,-745.83403878,0.000199,2]
[319441551,1710747040153,-1303.74849207,0.000199,2]
[319441552,1710747042007,-2251.89276788,0.000199,2]
[319441553,1710747042017,-1363.02769293,0.00022578,2]
[319441554,1710747042026,-3218.66747305,0.000227,2]
[319441555,1710747042068,-522.56356493,0.000227,2]
[319441556,1710747042080,-777.9999999,0.000227,2]
[319441557,1710747042184,-1186.33017313,0.000227,2]
[319441558,1710747042196,-294.19971437,0.000227,2]
[319441572,1710747043201,-2907.23907462,0.000227,2]
[319441574,1710747043211,-150.0,0.00022711,2]
[319441576,1710747043220,-200.0,0.00022787,2]
[319441578,1710747043230,-97.40095141,0.00022841,2]
[319441580,1710747043241,-2573.35074159,0.00022841,2]
[319441581,1710747043251,-1029.18721227,0.00022847,2]
[319441582,1710747043443,-850.57284025,0.00022847,10]
[319441583,1710747043461,-200.0,0.00022899,2]
[319441584,1710747043470,-589.40569618,0.00022907,2]
[319441585,1710747043480,-350.64653513,0.00022948,2]
[319441586,1710747043489,-1514.50507938,0.0002297,2]
[319441587,1710747043499,-306.0676328,0.00023,2]
[319441588,1710747043508,-950.0,0.00023,3]
[319441589,1710747043517,-331.96395506,0.00023,7]
[319441590,1710747043526,-321.72947893,0.00023,2]
[319441591,1710747043535,-2198.08460813,0.00023,2]
[319441592,1710747043544,-2075.34460735,0.00023,5]
[319441593,1710747043556,-36912.7382909,0.00023,5]
[319441595,1710747043578,-189396.42297429,0.00023,5]
[319441597,1710747043587,-17088.86103658,0.00023,2]
[319441599,1710747043597,-249.12,0.00023007,2]
[319441600,1710747043606,-1514.50507938,0.00023063,2]
[319441601,1710747043616,-230.0,0.0002308,16]
[319441602,1710747043625,-600.0,0.00023119,2]
[319441603,1710747043635,-150.0,0.00023216,2]
[319441604,1710747043645,-155.0,0.00023288,2]
[319441605,1710747043654,-159.13802938,0.00023529,2]
[319441606,1710747043663,-1919.09106593,0.0002354,2]
[319441607,1710747043673,-1514.50507938,0.00023557,2]
[319441608,1710747043682,-800.0,0.0002371,2]
[319441609,1710747043690,-150.0,0.0002372,2]
[319441610,1710747043699,-3000.0,0.000238,2]
[319441611,1710747043708,-1514.50507938,0.00023832,2]
[319441612,1710747043717,-188.09,0.00023876,2]
[319441613,1710747043727,-2670.751693,0.00023908,2]
[319441614,1710747043736,-300.0,0.0002399,2]
[319441615,1710747043745,-141325.96248642,0.00024,2]
[319441616,1710747043770,-129492.32679683,0.00024,2]
[319441617,1710747043779,-1514.50507938,0.00024099,2]
[319441618,1710747043788,-1514.50507938,0.00024132,2]
[319441619,1710747043798,-150.0,0.00024225,2]
[319441620,1710747043811,-1353.6740552,0.00024305,2]
[319441621,1710747043820,-1514.50507938,0.00024397,2]
[319441622,1710747043831,-906.0,0.000244,2]
[319441623,1710747043840,-732.60745713,0.000244,2]
[319441624,1710747043849,-1501.0,0.000244,2]
[319441625,1710747043858,-151.0,0.00024433,2]
[319441626,1710747043868,-1353.6740552,0.00024475,2]
[319441627,1710747043877,-1250.0,0.00024475,3]
[319441628,1710747043886,-2057.83,0.00024658,10]
[319441629,1710747043894,-155.0,0.00024658,2]
[319441630,1710747043903,-1353.6740552,0.00024681,2]
[319441631,1710747043913,-1514.50507938,0.00024719,2]
[319441632,1710747043922,-150.0,0.0002473,2]
[319441633,1710747043931,-159.13802938,0.00024886,2]
[319441634,1710747043940,-5000.0,0.000249,2]
[319441635,1710747043949,-595.5573359,0.000249,2]
[319441636,1710747043959,-532.0,0.00024932,2]
[319441637,1710747043969,-1514.50507938,0.00024967,2]
[319441638,1710747043982,-2670.751693,0.00024975,2]
[319441639,1710747043991,-155.0,0.00025,2]
[319441640,1710747044001,-1018.42220439,0.00025,10]
[319441641,1710747044010,-155.0,0.00025,2]
[319441642,1710747044020,-949746.38703988,0.00025,2]
[319441643,1710747044032,-7100.70632781,0.00025,2]
[319441644,1710747044044,-2993.61756767,0.00025,2]
[319441645,1710747044065,-400.30481951,0.00025,2]
[319441646,1710747044078,-775.37099461,0.00025,2]
[319441647,1710747044089,-500.0,0.00025,2]
[319441648,1710747044101,-9541.2862001,0.00025,2]
[319441649,1710747046029,-432.0,0.00020068,2]
[319441650,1710747046039,-211.35479475,0.00022999,2]
[319441651,1710747046048,-393.65102045,0.00022999,2]
[319441652,1710747046146,-4606.34897955,0.00022999,2]
[319441653,1710747046156,-658.33098871,0.00022999,2]
[319441654,1710747046166,-204.05790443,0.00022999,2]
[319441655,1710747046175,-13542.03141107,0.00025,2]
[319441656,1710747046187,-80101.7518341,0.00025,2]
[319441657,1710747046198,-3350.55096394,0.00025,2]
[319441658,1710747046214,-394.85405852,0.00025,2]
[319441659,1710747046225,-827.87656794,0.00025,2]
[319441660,1710747046237,-9616.12779229,0.00025,2]
[319441661,1710747046249,-635.84286283,0.00025,2]
[319441662,1710747046269,-557.8322401,0.00025,2]
[319441663,1710747046280,-544.44229938,0.00025,2]
[319441664,1710747046299,-5225.56051651,0.00025,2]
[319441665,1710747046311,-15335.7,0.00025,2]
[319441666,1710747046336,-7385.20000014,0.00025,2]
[319441667,1710747046348,-76286.09999999,0.00025,2]
[319441668,1710747046421,-432.00902886,0.00025,2]
[319441669,1710747046435,-34113.41320603,0.00025,2]
[319441670,1710747046446,-10295.67991704,0.00025,2]
[319441683,1710747947135,-202.74751577,0.00014999,2]
[319441684,1710747947154,-1280.29601648,0.00014999,2]
[319441685,1710747947173,-2000.0,0.00015,2]
[319441686,1710747947191,-5000.0,0.00016099,2]
[319441687,1710747947210,-3139.4288773,0.000161,2]
[319441688,1710748016087,-1639.5711227,0.000161,2]
[319441689,1710748016109,-452.01870967,0.00018054,2]
[319441690,1710748016129,-150.0,0.00018055,2]
[319441691,1710748016149,-406.48775146,0.00018088,2]
[319441692,1710748041183,-321.72947893,0.000161,2]
[319441693,1710748041204,-961.84424854,0.00018088,2]
[319441694,1710748041223,-5000.0,0.00018997,2]
[319441695,1710748041243,-928.827019,0.00018998,2]
[319441696,1710748041264,-300.0,0.000194,2]
[319441697,1710748041286,-363.4667793,0.000195,2]
[319441698,1710748041306,-431.4417,0.000199,2]
[319441699,1710748041326,-211.35479475,0.00019997,2]
[319441700,1710748041346,-2232.5902,0.00019998,2]
[319441701,1710748041374,-278.63190266,0.00019998,2]
[319441702,1710748041393,-277.67003575,0.00019998,2]
[319441703,1710748041414,-452.01870967,0.00019998,2]
[319441704,1710748041433,-343.10938847,0.00019999,2]
[319441705,1710748041455,-155.0,0.0002,2]
[319441706,1710748041475,-14329.3572613,0.0002,2]
[319441707,1710748041495,-1754.32004483,0.0002,2]
[319441708,1710748041517,-3456.42822516,0.0002,2]
[319441728,1710748232189,-295.66830457,0.000161,2]
[319441729,1710748232198,-452.01870967,0.00018897,2]
[319441730,1710748232207,-154.19306321,0.00018898,2]
[319441731,1710748232216,-363.4667793,0.000195,2]
[319441732,1710748232225,-702.52826532,0.00019781,2]
[319441733,1710748232361,-1164.77,0.00019781,2]
[319441734,1710748232409,-740.53558061,0.00019781,2]
[319441735,1710748232467,-761.75219466,0.00019781,2]
[319441736,1710748232478,-936.90400619,0.00019781,2]
[319441737,1710748232496,-689.30241408,0.00019781,2]
[319441738,1710748232508,-4.20753914,0.00019781,2]
[319441739,1710748232517,-1000.0,0.00019782,2]
[319441740,1710748232526,-211.35479475,0.0001998,2]
[319441741,1710748232537,-195.98132063,0.0002,2]
[319441742,1710748232553,-1086.69258254,0.0002,2]
[319441743,1710748233577,-6673.64865182,0.0002,2]
[319441744,1710748233589,-525.01690073,0.0002,2]
[319441890,1710748238236,-912.00283178,0.0002,2]
[319441891,1710748238577,-8166.19959806,0.0002,2]
[319441892,1710748238589,-11364.84833664,0.0002,2]
[319441893,1710748238598,-1848.45899034,0.0002,2]
[319441894,1710748238607,-2500.0,0.0002,2]
[319441895,1710748238616,-1361.44941736,0.0002,2]
[319441896,1710748238626,-155.0,0.0002,2]
[319441898,1710748238635,-1246.89677461,0.0002,2]
[319441900,1710748238644,-286.68802756,0.0002,2]
[319441902,1710748238653,-3040.27810605,0.0002,2]
[319441904,1710748238663,-22014.37254744,0.0002,2]
[319441906,1710748240384,-1023.495,0.0002,2]
[319441907,1710748241227,-24074.51885275,0.0002,2]
[319441908,1710748241247,-8365.626,0.0002,2]
[319441909,1710748241267,-14329.3572613,0.0002,2]
[319441910,1710748241282,-1754.32004483,0.0002,2]
[319441911,1710748241300,-155.0,0.0002,2]
[319441912,1710748241318,-605.013,0.00020311,2]
[319441913,1710748241336,-207.24,0.00020446,2]
[319441914,1710748241354,-249.45,0.00020942,2]
[319441915,1710748241369,-200.0,0.00021062,2]
[319441916,1710748241389,-543.95291501,0.00021248,2]
[319441917,1710748241409,-10866.358,0.0002138,2]
[319441918,1710748241423,-906.0,0.000219,2]
[319441919,1710748241438,-2000.0,0.000219,2]
[319441920,1710748241454,-739.26,0.00021917,4]
[319441921,1710748241466,-250.0,0.00021918,2]
[319441922,1710748241486,-2022.0,0.00021918,7]
[319441923,1710748241502,-155.0,0.00021918,2]
[319441924,1710748241515,-779.74941329,0.00022,2]
[319441925,1710748241530,-425.76,0.00022063,2]
[319441926,1710748241547,-159.13802938,0.00022091,2]
[319441927,1710748241561,-16564.67074822,0.00022135,2]
[319441941,1710748243259,-1848.45899034,0.00022133,2]
[319441942,1710748243275,-9517.52020619,0.00022135,2]
[319441943,1710748243290,-150.0,0.00022158,2]
[319441944,1710748243307,-739.26,0.00022191,4]
[319441945,1710748243327,-1229.77,0.0002222,2]
[319441946,1710748243342,-250.0,0.0002222,2]
[319441947,1710748243357,-1800.6,0.00022228,10]
[319441948,1710748243372,-920.0,0.00022417,2]
[319441949,1710748243387,-739.26,0.00022465,4]
[319441950,1710748243403,-250.0,0.00022478,2]
[319441951,1710748243419,-169.05793921,0.00022538,2]
[319441952,1710748243434,-360.0,0.0002262,2]
[319441953,1710748243449,-207.24,0.0002271,2]
[319441954,1710748243464,-443.98936417,0.00022739,4]
[319441955,1710748243488,-295.27063583,0.00022739,4]
[319441956,1710748243503,-150.0,0.0002275,2]
[319441957,1710748243518,-200.0,0.00022899,2]
[319441958,1710748243534,-296.71847077,0.00022998,2]
[319441959,1710748243549,-155.08078954,0.00022998,2]
[319441960,1710748243802,-374.77722384,0.00022998,2]
[319441961,1710748243836,-294.3504502,0.00022998,2]
[319441962,1710748243846,-308.571189,0.00022998,2]
[319441963,1710748243856,-306.0676328,0.00023,2]
[319441964,1710748243866,-739.26,0.00023013,4]
[319441965,1710748243875,-1514.50507939,0.00023018,2]
[319441966,1710748243884,-26082.19095438,0.00023087,2]
[319441967,1710748243894,-800.0,0.0002326,2]
[319441968,1710748243903,-739.26,0.00023287,4]
[319441969,1710748243913,-155.0,0.00023288,2]
[319441970,1710748243922,-175.0,0.000233,2]
[319441971,1710748243931,-8216.0,0.000233,2]
[319441972,1710748243941,-150.0,0.00023342,2]
[319441973,1710748243950,-1514.50507939,0.00023465,2]
[319441974,1710748243959,-1353.6740552,0.0002351,2]
[319441975,1710748243968,-1919.09106593,0.0002354,2]
[319441976,1710748243977,-739.26,0.00023561,4]
[319441977,1710748243986,-1353.6740552,0.00023764,2]
[319441978,1710748243995,-3000.0,0.000238,2]
[319441979,1710748244005,-1514.50507939,0.0002383,2]
[319441980,1710748244014,-739.26,0.00023835,4]
[319441981,1710748244023,-150.0,0.00023934,2]
[319441982,1710748244032,-1353.6740552,0.00024022,2]
[319441983,1710748244041,-13767.11318351,0.00024038,2]
[319441984,1710748244057,-12315.07777087,0.00024038,2]
[319441985,1710748244066,-1514.50507939,0.00024058,2]
[319441986,1710748244075,-739.26,0.00024109,4]
[319441987,1710748244084,-1353.6740552,0.00024152,2]
[319441988,1710748244093,-1514.50507939,0.00024153,2]
[319441989,1710748244102,-739.26,0.00024383,4]
[319441990,1710748244111,-201.99964457,0.00024433,2]
[319441991,1710748244120,-1353.6740552,0.00024471,2]
[319441992,1710748244129,-1149.62926499,0.000245,2]
[319441993,1710748244138,-1514.50507939,0.00024524,2]
[319441994,1710748244148,-150.0,0.00024526,2]
[319441995,1710748244157,-180.0,0.00024583,2]
[319441996,1710748244166,-739.26,0.00024657,4]
[319441997,1710748244175,-155.0,0.00024658,2]
[319441998,1710748244184,-1353.6740552,0.00024671,2]
[319441999,1710748244194,-159.13802938,0.00024694,2]
[319442000,1710748244204,-8097.02679115,0.000247,2]
[319442001,1710748244213,-164.78761619,0.0002475,3]
[319442002,1710748244223,-164.78761619,0.0002475,3]
[319442003,1710748244233,-2454.03913,0.0002475,2]
[319442004,1710748244243,-425.76,0.00024821,120]
[319442005,1710748244252,-1514.50507939,0.00024828,2]
[319442006,1710748244261,-405.04539466,0.000249,2]
[319442007,1710748244270,-13293.5484,0.000249,2]
[319442008,1710748244280,-5000.0,0.000249,2]
[319442009,1710748244289,-764.28079322,0.000249,2]
[319442010,1710748244300,-397.03822394,0.000249,2]
[319442011,1710748244310,-252.47732413,0.000249,2]
[319442012,1710748244319,-18734.67904616,0.000249,2]
[319442013,1710748244331,-351.56299309,0.000249,2]
[319442014,1710748244340,-182.9480091,0.000249,4]
[319442015,1710748244349,-3519.57889277,0.000249,2]
[319442016,1710748244359,-739.26,0.00024931,4]
[319442017,1710748244368,-466.0,0.00024932,2]
[319442018,1710748244378,-1800.6,0.00024968,10]
[319442019,1710748244388,-207.24,0.00024974,2]
[319442020,1710748244397,-26082.19095438,0.0002499,2]
[319442021,1710748244407,-168.26497482,0.00024998,2]
[319442022,1710748244417,-350.0,0.00024999,2]
[319442023,1710748244427,-500.0,0.00024999,2]
[319442024,1710748244437,-645.409532,0.00024999,2]
[319442025,1710748244446,-500.0,0.00024999,2]
[319442026,1710748244456,-448250.17718817,0.00025,2]
[319442027,1710748244466,-1000.0,0.00025,3]
[319442028,1710748244475,-15000.0,0.00025,3]
[319442029,1710748244485,-155.0,0.00025,2]
[319442030,1710748244494,-155.0,0.00025,2]
[319442031,1710748244504,-1018.42220439,0.00025,10]
[319442032,1710748244513,-331.96395506,0.00025,7]
[319442033,1710748244523,-1029.18721227,0.00025,2]
[319442034,1710748244533,-2198.08460813,0.00025,2]
[319442035,1710748244543,-398653.13256857,0.00025,2]
[319442036,1710748244557,-7547.31687986,0.00025,2]
[319442037,1710748244568,-13637.4528,0.00025,2]
[319442038,1710748244593,-5353.19552402,0.00025,2]
[319442039,1710748245432,320.91075287,0.000231,100]
[319442047,1710748246359,-211.35479475,0.00022134,2]
[319442048,1710748246368,-213.97010533,0.00025,2]
[319442049,1710748246420,-1023.34576393,0.00025,2]
[319442050,1710748247086,-363.4667793,0.000195,2]
[319442051,1710748247096,-56.02094135,0.00025,2]
[319442183,1710748450007,-607.1892,0.000139,2]
[319442184,1710748450030,-2000.0,0.00014,2]
[319442185,1710748450055,-2000.0,0.00014,3]
[319442186,1710748450079,-1000.0,0.00014,4]
[319442187,1710748450102,-989.29365332,0.00014,3]
[319442188,1710748450129,-71728.51714668,0.00014,2]
[319442192,1710748832520,-2000.0,0.000139,2]
[319442193,1710748833352,-2000.0,0.000139,2]
[319442194,1710748833823,-455.49934104,0.000139,2]
[319442195,1710748833844,-154.53228871,0.000139,2]
[319442196,1710748833864,-703.12598618,0.000139,2]
[319442197,1710748833883,-504.95464822,0.000139,2]
[319442198,1710748833903,-181.88773585,0.000139,2]
[319442199,1710748834254,-2000.0,0.000139,2]
[319442200,1710748834852,-2000.0,0.000139,2]
[319442201,1710748835304,-2000.0,0.000139,2]
[319442202,1710748835865,-857.27004969,0.000139,2]
[319442203,1710748835898,-155.0,0.00013999,2]
[319442204,1710748835932,-987.72995031,0.00014,2]
[319442205,1710748836210,-1012.27004969,0.00014,2]
[319442206,1710748836243,-987.72995031,0.00014,3]
[319442207,1710748837386,-1012.27004969,0.00014,3]
[319442208,1710748837407,-987.72995031,0.00014,4]
[319442209,1710748837518,-12.27004969,0.00014,4]
[319442210,1710748837539,-989.29365332,0.00014,3]
[319442211,1710748837562,-998.43629699,0.00014,2]
[319442212,1710748838522,-2000.0,0.00014,2]
[319442213,1710748839367,-2000.0,0.00014,2]
[319442214,1710748847973,-1856.2032,0.00014,2]
[319442215,1710748865532,-160.25297431,0.00013999,2]
[319442216,1710748865555,-373.8809731,0.00013999,2]
[319442217,1710748865576,-812.38625259,0.00013999,2]
[319442218,1710748950764,150.0,0.00020811,120]
[319442224,1710749343087,12748.08,0.0002322,100]
[319442235,1710749431456,-498.99264785,0.00013288,2]
[319442237,1710749431469,-544.96026716,0.00013289,2]
[319442259,1710749432052,-0.00594306,0.00013289,2]
[319442303,1710749437483,-164.83605383,0.00013289,2]
[319442305,1710749437493,-263.284298,0.0001339,2]
[319442307,1710749437502,-607.1892,0.000139,2]
[319442309,1710749437511,-2474.0978644,0.000139,2]
[319442311,1710749437520,-150.0,0.00013997,2]
[319442313,1710749437529,-559.38958846,0.00013998,2]
[319442315,1710749437538,-360.47780149,0.00013998,2]
[319442316,1710749437548,-680.54198608,0.00013998,2]
[319442318,1710749437557,-3060.85523185,0.00013998,2]
[319442320,1710749437566,-155.0,0.00013998,2]
[319442321,1710749437575,-444.77852355,0.00013998,2]
[319442323,1710749437587,-155.02371756,0.00013998,2]
[319442325,1710749437596,-700.0,0.00013998,2]
[319442327,1710749437606,-3489.07968978,0.00013999,2]
[319442328,1710749437615,-1052.96765413,0.00013999,2]
[319442330,1710749437624,-775.74900842,0.00013999,2]
[319442332,1710749437633,-403.36554612,0.00013999,2]
[319442333,1710749437643,-205.34125595,0.00013999,2]
[319442335,1710749437651,-4868.90918038,0.00013999,2]
[319442340,1710749437699,-636.15486894,0.00013999,2]
[319442341,1710749437707,-409.72680051,0.00013999,2]
[319442343,1710749437717,-782.68954789,0.00013999,2]
[319442345,1710749437727,-166.07871829,0.00013999,2]
[319442347,1710749437736,-155.26613289,0.00013999,2]
[319442348,1710749437745,-3357.84626022,0.00013999,2]
[319442350,1710749437754,-494.64682666,0.00014,3]
[319442352,1710749437764,-29854349.7498438,0.00014,2]
[319442357,1710749437804,-4653.71143237,0.00014,2]
[319442378,1710749439562,-27211.23651945,0.00014,2]
[319442379,1710749439687,-2397.79877107,0.00014,2]
[319442390,1710749442538,-192694.70737,0.00014,2]
[319442391,1710749442562,-7226.09312434,0.00014,2]
[319442393,1710749442638,-843.85112717,0.00014,2]
[319442394,1710749442773,-545.32234174,0.00014,2]
[319442395,1710749442840,-627.33421408,0.00014,2]
[319442396,1710749442895,-17050.0,0.00014,2]
[319442398,1710749445578,-685.25828014,0.00013189,2]
[319442399,1710749445592,-499.77218056,0.00013999,2]
[319442400,1710749445601,-78916.7213734,0.00014,2]
[319442401,1710749445612,-21902.62476762,0.00014,2]
[319442402,1710749445623,-5444.60000001,0.00014,2]
[319442403,1710749446237,-12352.53099759,0.00014,2]
[319442411,1710750541935,-544.08013174,0.00013672,2]
[319442412,1710750541960,-155.0,0.00013673,2]
[319442413,1710750541985,-250.48739781,0.00013677,2]
[319442414,1710750542014,-249.08,0.00013772,2]
[319442415,1710750542039,-1503.35722983,0.00013872,2]
[319442416,1710750542065,-157.67112117,0.00013899,2]
[319442417,1710750542093,-700.0,0.00013995,2]
[319442418,1710750542118,-440.32411945,0.00013996,2]
[319442419,1710750556233,543.82569828,0.00011898,2]
[319442434,1710750631649,-700.0,0.00013994,2]
[319442435,1710750631658,-157.78882466,0.00013995,2]
[319442436,1710750631668,-839.97189703,0.00013996,2]
[319442437,1710750631677,-150.0,0.00013997,2]
[319442438,1710750631686,-881.11604835,0.00013998,2]
[319442439,1710750631694,-238.47039238,0.00013998,2]
[319442440,1710750631704,-594.45292384,0.00013998,2]
[319442441,1710750631713,-86.19195484,0.00013998,2]
[319442442,1710750631724,-172.74416423,0.00013998,2]
[319442443,1710750631733,-155.31643916,0.00013998,2]
[319442444,1710750631742,-1289.25207947,0.00013998,2]
[319442445,1710750631758,-594.4228767,0.00013998,2]
[319442446,1710750631767,-69.03552358,0.00013998,2]
[319442447,1710750631779,-930.96447642,0.00013998,2]
[319442448,1710750631788,-155.0,0.00013998,2]
[319442449,1710750631798,-202.74751577,0.00013999,2]
[319442450,1710750631808,-1220.63459765,0.00013999,2]
[319442451,1710750631817,-890.70341016,0.00014,2]
[319442452,1710750631868,-419.1636601,0.00014,2]
[319442453,1710750631880,-3371.24484,0.00014,2]